bitfinex/quotes_BTCUSD_20230404
["timestamp","ask_amount","ask_price","bid_price","bid_amount"]
[1680579074578,0.06390966,27921.0,27920.0,0.55143874]
[1680579074792,0.38997801,27921.0,27920.0,0.55143874]
[1680579075010,0.5433487,27921.0,27920.0,0.12846288]
[1680579075221,0.5603487,27921.0,27920.0,0.12846288]
[1680579075655,0.5603487,27921.0,27919.0,0.50609173]
[1680579075899,0.5603487,27921.0,27919.0,0.50597173]
[1680579076239,0.5433487,27921.0,27919.0,0.50597173]
[1680579076458,0.38189987,27920.0,27919.0,0.50597173]
[1680579076678,0.38924287,27920.0,27919.0,0.75722734]
[1680579076877,0.38924287,27920.0,27919.0,0.42298388]
[1680579077278,0.38924287,27920.0,27919.0,0.08555208]
[1680579077601,0.40606287,27920.0,27919.0,0.50854216]
[1680579077814,0.40624287,27920.0,27919.0,0.50854216]
[1680579078015,0.40624287,27920.0,27919.0,0.08555262]
[1680579078231,0.40606287,27920.0,27919.0,0.08555262]
[1680579078390,0.40624287,27920.0,27919.0,0.08555262]
[1680579078591,0.40624287,27920.0,27919.0,0.50854093]
[1680579078922,0.40624287,27920.0,27919.0,0.08567262]
[1680579079122,0.40624287,27920.0,27919.0,0.08555262]
[1680579080241,0.40606287,27920.0,27919.0,0.08555262]
[1680579080436,0.38906287,27920.0,27919.0,0.08555262]
[1680579080645,0.41306287,27920.0,27919.0,0.08555262]
[1680579081298,0.61198373,27920.0,27918.0,0.10635262]
[1680579081578,0.07030897,27919.0,27918.0,0.10635262]
[1680579081792,0.40379691,27919.0,27918.0,0.10635262]
[1680579083074,0.51823757,27919.0,27918.0,0.0208]
[1680579083291,0.35748794,27919.0,27918.0,0.0208]
[1680579083956,0.33348794,27919.0,27918.0,0.0208]
[1680579084238,0.36048794,27919.0,27918.0,0.0208]
[1680579084454,0.36048794,27919.0,27918.0,0.01188823]
[1680579084455,1.21397421,27919.0,27918.0,0.01188823]
[1680579084679,1.20529421,27919.0,27918.0,0.01188823]
[1680579085121,1.20547421,27919.0,27918.0,0.01188823]
[1680579085340,1.0794267,27919.0,27918.0,0.01188823]
[1680579085568,1.19987856,27919.0,27918.0,0.01188823]
[1680579085792,1.0879267,27919.0,27918.0,0.01188823]
[1680579086019,1.20898078,27919.0,27918.0,0.01188823]
[1680579086241,1.18198078,27919.0,27918.0,0.01188823]
[1680579086715,1.20048078,27919.0,27918.0,0.01188823]
[1680579087112,1.17348078,27919.0,27918.0,0.01188823]
[1680579087335,1.20048078,27919.0,27918.0,0.00125823]
[1680579087548,1.20030078,27919.0,27918.0,0.00125823]
[1680579092519,1.34208943,27919.0,27918.0,0.00125823]
[1680579092747,1.36908943,27919.0,27918.0,0.00125823]
[1680579093523,1.2328467,27919.0,27918.0,0.00125823]
[1680579093814,1.37053331,27919.0,27918.0,0.00125823]
[1680579094221,1.2328467,27919.0,27918.0,0.00125823]
[1680579094601,1.34717112,27919.0,27918.0,0.00125823]
[1680579095000,1.2328467,27919.0,27918.0,0.00125823]
[1680579095277,1.2413467,27919.0,27918.0,0.00125823]
[1680579095707,1.36046718,27919.0,27918.0,0.00125823]
[1680579097225,0.81378794,27919.0,27918.0,0.00125823]
[1680579097466,0.36048794,27919.0,27918.0,0.36410091]
[1680579097673,0.36048794,27919.0,27918.0,0.36428091]
[1680579098098,0.33348794,27919.0,27918.0,0.36428091]
[1680579098307,0.027,27919.0,27918.0,0.36428091]
[1680579098780,0.04496289,27924.0,27918.0,0.07833823]
[1680579099020,0.00911782,27924.0,27919.0,0.1769]
[1680579099253,0.00911782,27924.0,27922.0,0.0769]
[1680579100102,0.00878,27923.0,27922.0,0.0769]
[1680579100544,0.00878,27923.0,27922.0,0.0719]
[1680579100759,0.15840733,27924.0,27922.0,0.0719]
[1680579100974,0.008489,27923.0,27922.0,0.0719]
[1680579101184,0.012489,27923.0,27922.0,0.0719]
[1680579101398,0.004,27923.0,27921.0,0.56397115]
[1680579102299,1.79168106,27928.0,27921.0,0.12251511]
[1680579102499,0.69784481,27933.0,27921.0,0.12251511]
[1680579102500,0.0076501,27936.0,27927.0,0.171]
[1680579102733,0.0076501,27936.0,27933.0,0.0855]
[1680579102956,0.0076501,27936.0,27931.0,0.2737]
[1680579103174,0.0076501,27936.0,27933.0,0.014319]
[1680579103514,0.0076501,27936.0,27934.0,0.134078]
[1680579103645,0.0076501,27936.0,27935.0,0.04878]
[1680579103860,0.0076501,27936.0,27935.0,0.14878]
[1680579104005,0.0096501,27936.0,27935.0,0.14896]
[1680579104228,0.0096501,27936.0,27935.0,0.1830779]
[1680579104615,0.0096501,27936.0,27935.0,0.1940779]
[1680579104616,0.0076501,27936.0,27935.0,0.1940779]
[1680579104820,0.0096501,27936.0,27935.0,0.10228]
[1680579105256,0.0096501,27936.0,27935.0,0.152943]
[1680579105678,0.0096501,27936.0,27935.0,0.60045088]
[1680579105922,0.0096501,27936.0,27935.0,0.59315356]
[1680579106136,0.0096501,27936.0,27935.0,2.12088892]
[1680579106361,1e-08,27936.0,27935.0,2.13520692]
[1680579106809,0.02299,27937.0,27936.0,0.150018]
[1680579107021,0.02299,27937.0,27936.0,0.67590856]
[1680579107264,0.02299,27937.0,27936.0,0.84762856]
[1680579107475,0.02299,27937.0,27936.0,0.93085988]
[1680579107690,0.02299,27937.0,27936.0,0.84744856]
[1680579107902,0.02399,27937.0,27936.0,0.87544856]
[1680579108115,0.02299,27937.0,27936.0,0.84744856]
[1680579108539,0.00531698,27937.0,27936.0,0.87550856]
[1680579108754,0.00431698,27937.0,27936.0,0.84744856]
[1680579109596,0.00431698,27937.0,27936.0,0.84750856]
[1680579109842,0.00531698,27937.0,27936.0,0.87562856]
[1680579110051,0.00431698,27937.0,27936.0,0.74762856]
[1680579110265,0.00531698,27937.0,27936.0,0.77562856]
[1680579110474,0.00431698,27937.0,27936.0,0.84762856]
[1680579110690,0.00531698,27937.0,27936.0,0.87562856]
[1680579110901,0.00431698,27937.0,27936.0,0.84674856]
[1680579111129,0.00531698,27937.0,27936.0,0.87474856]
[1680579111352,0.00531698,27937.0,27936.0,1.57454856]
[1680579111556,0.00531698,27937.0,27936.0,1.58886656]
[1680579111765,0.00431698,27937.0,27936.0,1.54654856]
[1680579112648,0.00531698,27937.0,27936.0,1.57454856]
[1680579112857,0.00431698,27937.0,27936.0,1.63754856]
[1680579113080,0.00531698,27937.0,27936.0,1.66554856]
[1680579117086,0.00531698,27937.0,27936.0,1.67986656]
[1680579117527,0.00531698,27937.0,27936.0,1.66554856]
[1680579117737,0.00531698,27937.0,27936.0,1.67486656]
[1680579117944,0.00531698,27937.0,27936.0,1.70350256]
[1680579118357,0.00531698,27937.0,27936.0,1.67486656]
[1680579126624,0.00531698,27937.0,27936.0,1.6928144]
[1680579127070,0.02299,27941.0,27939.0,0.2]
[1680579127290,0.02299,27941.0,27940.0,0.149239]
[1680579127507,0.02299,27941.0,27940.0,0.320959]
[1680579128218,0.02399,27941.0,27940.0,1.22086956]
[1680579128446,0.02299,27941.0,27940.0,1.22086956]
[1680579128670,0.01799,27941.0,27940.0,1.23586956]
[1680579128889,0.01799,27941.0,27940.0,1.22086956]
[1680579129142,0.01799,27941.0,27940.0,1.24886956]
[1680579129940,0.01799,27941.0,27940.0,1.15887435]
[1680579130412,0.01799,27941.0,27940.0,1.17319035]
[1680579130637,0.01799,27941.0,27940.0,0.78666956]
[1680579131351,0.01799,27941.0,27940.0,1.24796956]
[1680579132225,0.01799,27941.0,27940.0,1.16346956]
[1680579132906,0.02288,27944.0,27943.0,0.5768]
[1680579133150,0.02282,27945.0,27943.0,1.98130956]
[1680579133340,0.02282,27945.0,27944.0,0.604921]
[1680579133592,0.02282,27945.0,27944.0,1.24560556]
[1680579134578,0.02288,27947.0,27946.0,0.5768]
[1680579134813,0.02288,27947.0,27946.0,1.53575856]
[1680579135047,0.02288,27947.0,27946.0,1.70741856]
[1680579135286,0.02294,27953.0,27951.0,0.5768]
[1680579135506,0.02288,27953.0,27952.0,0.96772656]
[1680579135734,0.02288,27953.0,27952.0,0.223086]
[1680579135973,0.02288,27953.0,27952.0,0.0866]
[1680579136197,0.00018,27955.0,27952.0,0.08666]
[1680579136440,0.02306,27958.0,27953.0,0.011478]
[1680579136695,0.030153,27958.0,27953.0,0.011478]
[1680579136919,0.02288,27958.0,27953.0,0.011478]
[1680579137143,0.030033,27958.0,27954.0,0.40734873]
[1680579137363,0.02306,27958.0,27954.0,0.40734873]
[1680579137583,0.010201,27957.0,27954.0,0.40734873]
[1680579137767,0.030213,27958.0,27954.0,0.40734873]
[1680579138695,0.0036468,27957.0,27955.0,0.35471056]
[1680579138919,0.02306,27958.0,27954.0,0.4955894]
[1680579139132,0.017706,27957.0,27954.0,0.42134873]
[1680579139350,0.007153,27957.0,27954.0,0.42134873]
[1680579139576,0.007153,27957.0,27954.0,0.40734873]
[1680579139797,0.007153,27957.0,27955.0,0.007]
[1680579140014,0.007153,27957.0,27954.0,0.40734873]
[1680579140240,0.007153,27957.0,27954.0,0.41434873]
[1680579140475,0.0340391,27958.0,27954.0,0.4857636]
[1680579140709,0.02306,27958.0,27955.0,0.35471056]
[1680579140924,0.030033,27958.0,27954.0,0.36871056]
[1680579141156,0.03374729,27958.0,27954.0,0.014]
[1680579141383,0.02659429,27958.0,27955.0,0.35471056]
[1680579141601,0.02288,27958.0,27954.0,0.36871056]
[1680579141830,0.02288,27958.0,27954.0,0.35471056]
[1680579142047,0.02288,27958.0,27955.0,0.007]
[1680579142271,0.02288,27958.0,27954.0,0.35471056]
[1680579142491,0.02288,27958.0,27955.0,0.021]
[1680579142713,0.02288,27958.0,27955.0,0.44170782]
[1680579142941,0.02288,27958.0,27955.0,0.46270782]
[1680579143189,0.02288,27958.0,27955.0,0.44170782]
[1680579143407,0.02288,27958.0,27955.0,0.46270782]
[1680579143632,0.02288,27958.0,27956.0,0.08174184]
[1680579143853,0.02288,27958.0,27956.0,0.35471056]
[1680579145183,0.02288,27958.0,27956.0,0.37571056]
[1680579145411,0.02288,27958.0,27957.0,0.40091682]
[1680579146090,0.02288,27958.0,27957.0,0.93151056]
[1680579146319,0.02288,27958.0,27957.0,1.07154856]
[1680579146769,0.02288,27958.0,27957.0,1.36385222]
[1680579146992,0.02288,27958.0,27957.0,1.19243222]
[1680579147212,0.02288,27958.0,27957.0,1.44850622]
[1680579147404,0.02288,27958.0,27957.0,1.29090622]
[1680579147640,0.02288,27958.0,27957.0,1.80585859]
[1680579147890,0.02288,27958.0,27957.0,0.92275493]
[1680579148119,0.02288,27958.0,27957.0,0.8996473]
[1680579148377,0.02288,27958.0,27957.0,0.9859473]
[1680579148615,0.02288,27958.0,27957.0,0.51702856]
[1680579148840,0.02288,27958.0,27957.0,0.95404354]
[1680579149065,0.02288,27958.0,27957.0,0.87490461]
[1680579149289,0.02288,27958.0,27957.0,0.85390461]
[1680579149590,0.02288,27958.0,27957.0,0.1143]
[1680579149808,0.02288,27958.0,27957.0,0.028]
[1680579150041,0.02288,27958.0,27957.0,0.41208392]
[1680579150230,0.02288,27958.0,27957.0,0.43067056]
[1680579150482,0.02288,27958.0,27957.0,0.40267056]
[1680579150703,0.02288,27958.0,27957.0,0.77947056]
[1680579151136,0.02288,27958.0,27957.0,0.79347056]
[1680579151393,0.02288,27958.0,27957.0,0.77947056]
[1680579151616,0.02288,27958.0,27957.0,0.80647056]
[1680579151809,0.02288,27958.0,27957.0,0.77947056]
[1680579152062,0.02288,27958.0,27957.0,0.80647056]
[1680579152280,0.02288,27958.0,27957.0,0.77136758]
[1680579152497,0.02288,27958.0,27957.0,0.61733272]
[1680579152717,0.02288,27958.0,27957.0,0.70993272]
[1680579152899,0.02288,27958.0,27957.0,0.98153272]
[1680579153122,0.02288,27958.0,27957.0,0.78293272]
[1680579153376,0.02288,27958.0,27957.0,1.18773272]
[1680579153599,0.02288,27958.0,27957.0,1.18273272]
[1680579153839,0.02288,27958.0,27957.0,1.35433272]
[1680579154067,0.02288,27958.0,27957.0,1.18273272]
[1680579154283,0.02288,27958.0,27957.0,1.35433272]
[1680579154502,0.02288,27958.0,27957.0,1.32633272]
[1680579154760,0.02288,27958.0,27957.0,1.18273272]
[1680579154997,0.02288,27958.0,27957.0,1.35433272]
[1680579155324,0.02288,27958.0,27957.0,1.18273272]
[1680579155519,0.02288,27958.0,27957.0,1.25433272]
[1680579155747,0.02288,27958.0,27957.0,1.08273272]
[1680579155981,0.02288,27958.0,27957.0,1.25451272]
[1680579156659,0.02288,27958.0,27957.0,1.25433272]
[1680579156875,0.02288,27958.0,27957.0,1.08273272]
[1680579157112,0.02288,27958.0,27957.0,1.25433272]
[1680579157553,0.02288,27958.0,27957.0,1.08273272]
[1680579157754,0.02288,27958.0,27957.0,1.25433272]
[1680579157970,0.02288,27958.0,27957.0,1.08273272]
[1680579158190,0.02288,27958.0,27957.0,1.25433272]
[1680579158650,0.02288,27958.0,27957.0,1.08273272]
[1680579158866,0.02288,27958.0,27957.0,1.26863972]
[1680579159547,0.02288,27958.0,27957.0,1.24063972]
[1680579159773,0.02288,27958.0,27957.0,1.26863972]
[1680579159992,0.02288,27958.0,27957.0,1.25433272]
[1680579160213,0.02288,27958.0,27957.0,1.08273272]
[1680579160456,0.02288,27958.0,27957.0,1.25433272]
[1680579162488,0.02288,27958.0,27957.0,1.08273272]
[1680579162711,0.02288,27958.0,27957.0,1.25433272]
[1680579163163,0.02288,27958.0,27957.0,1.16943272]
[1680579163593,0.02288,27958.0,27957.0,1.14143272]
[1680579163816,0.02288,27958.0,27957.0,1.16943272]
[1680579164033,0.02288,27958.0,27957.0,0.99783272]
[1680579164250,0.02288,27958.0,27957.0,1.16943272]
[1680579164467,0.02288,27958.0,27957.0,1.47533588]
[1680579164692,0.02288,27958.0,27957.0,0.1206]
[1680579164933,0.02288,27958.0,27957.0,0.113]
[1680579165599,0.02288,27958.0,27957.0,0.085]
[1680579165821,0.02288,27958.0,27957.0,0.028]
[1680579166042,0.02288,27958.0,27956.0,0.46622602]
[1680579166253,0.02288,27958.0,27957.0,0.028]
[1680579166974,0.19990404,27954.0,27953.0,6e-05]
[1680579167235,0.19990404,27954.0,27950.0,0.00018]
[1680579167236,0.19990404,27951.0,27950.0,0.00018]
[1680579167491,0.78277698,27951.0,27948.0,0.45065047]
[1680579167748,0.0854,27949.0,27948.0,0.45065047]
[1680579167986,0.118933,27949.0,27948.0,0.45047047]
[1680579168206,0.007335,27949.0,27946.0,0.00018]
[1680579168429,0.007155,27949.0,27944.0,0.084654]
[1680579168653,0.007155,27949.0,27948.0,0.36930333]
[1680579168903,0.01919,27949.0,27948.0,0.39101589]
[1680579169128,0.02037,27949.0,27948.0,0.39136854]
[1680579169359,0.007335,27949.0,27948.0,0.38636854]
[1680579169585,0.020413,27949.0,27948.0,0.38636854]
[1680579169814,0.007335,27949.0,27948.0,0.38636854]
[1680579170050,0.007155,27949.0,27948.0,0.38636854]
[1680579170300,0.57670404,27948.0,27947.0,0.00474]
[1680579170532,0.19984404,27943.0,27942.0,0.02288]
[1680579170769,0.46034685,27943.0,27942.0,0.023]
[1680579170984,0.48033125,27943.0,27942.0,0.02306]
[1680579171230,0.33843444,27943.0,27942.0,0.02306]
[1680579171671,0.34043444,27943.0,27942.0,0.02288]
[1680579171900,0.6661206,27943.0,27942.0,0.02288]
[1680579172118,0.6661206,27943.0,27942.0,0.02388]
[1680579172119,0.6871206,27943.0,27942.0,0.02388]
[1680579172637,0.6661206,27943.0,27942.0,0.02388]
[1680579172888,0.6811206,27943.0,27942.0,0.02388]
[1680579173565,0.6461362,27943.0,27942.0,0.02288]
[1680579173755,0.6731362,27943.0,27942.0,0.02388]
[1680579174245,0.7855362,27943.0,27942.0,0.02488]
[1680579174448,0.82012782,27943.0,27942.0,0.02288]
[1680579175330,0.84712782,27943.0,27942.0,0.02388]
[1680579176221,0.82012782,27943.0,27942.0,0.02288]
[1680579176466,0.84712782,27943.0,27942.0,0.02388]
[1680579176690,0.82012782,27943.0,27942.0,0.02288]
[1680579176912,0.84712782,27943.0,27942.0,0.02388]
[1680579177148,0.82012782,27943.0,27942.0,0.02288]
[1680579177371,0.84712782,27943.0,27942.0,0.02388]
[1680579177604,0.82012782,27943.0,27941.0,0.05396999]
[1680579177824,0.90112918,27942.0,27941.0,0.05396999]
[1680579178052,0.90828618,27942.0,27941.0,0.05396999]
[1680579179182,0.90846618,27942.0,27941.0,0.05396999]
[1680579179624,0.93528618,27942.0,27941.0,0.05496999]
[1680579179815,0.91264082,27942.0,27941.0,0.05396999]
[1680579180048,0.93964082,27942.0,27941.0,0.05496999]
[1680579181024,0.93964082,27942.0,27941.0,0.05396999]
[1680579181025,0.91264082,27942.0,27941.0,0.05396999]
[1680579181212,0.93964082,27942.0,27941.0,0.05496999]
[1680579181651,1.31208618,27942.0,27941.0,0.05496999]
[1680579181879,1.29376618,27942.0,27941.0,0.05396999]
[1680579182091,1.32076618,27942.0,27941.0,0.05496999]
[1680579182304,1.29798553,27942.0,27941.0,0.05396999]
[1680579182521,1.32534406,27942.0,27941.0,0.05496999]
[1680579182737,1.32076618,27942.0,27941.0,0.05496999]
[1680579183389,1.72892952,27942.0,27941.0,0.05496999]
[1680579183608,1.72882672,27942.0,27941.0,0.05496999]
[1680579184311,1.76428446,27942.0,27941.0,0.05496999]
[1680579184547,1.76063106,27942.0,27941.0,0.05496999]
[1680579185449,0.19984404,27939.0,27938.0,0.01186479]
[1680579185695,0.19947324,27934.0,27931.0,0.45480272]
[1680579185931,0.1708,27932.0,27931.0,0.45480272]
[1680579186178,0.64451465,27932.0,27931.0,0.02092]
[1680579186400,0.50261784,27932.0,27931.0,0.0208]
[1680579187140,0.41721784,27932.0,27931.0,0.0208]
[1680579187379,0.33181784,27932.0,27931.0,0.0208]
[1680579187845,0.35881784,27932.0,27931.0,0.0208]
[1680579188102,0.33181784,27932.0,27931.0,0.0208]
[1680579188320,0.35881784,27932.0,27931.0,0.0208]
[1680579188545,0.33181784,27932.0,27931.0,0.0208]
[1680579188741,0.35881784,27932.0,27931.0,0.0208]
[1680579188973,0.33181784,27932.0,27931.0,0.0208]
[1680579189173,0.35881784,27932.0,27931.0,0.0208]
[1680579189426,0.40858902,27932.0,27931.0,0.0208]
[1680579189878,0.33181784,27932.0,27931.0,0.0208]
[1680579190103,0.33187784,27932.0,27931.0,0.0208]
[1680579190327,0.35881784,27932.0,27931.0,0.0208]
[1680579190766,0.36305568,27932.0,27931.0,0.0208]
[1680579190992,0.33605568,27932.0,27931.0,0.0208]
[1680579191215,0.43999601,27932.0,27931.0,0.0208]
[1680579191435,0.52479601,27932.0,27931.0,0.0208]
[1680579191656,0.49779601,27932.0,27931.0,0.0208]
[1680579191877,0.52479601,27932.0,27931.0,0.0208]
[1680579192757,0.52479601,27932.0,27929.0,0.19850857]
[1680579193047,0.41018604,27930.0,27928.0,6e-05]
[1680579193277,0.106883,27929.0,27927.0,0.00052676]
[1680579193469,0.32510653,27928.0,27927.0,0.00052676]
[1680579193720,0.14189681,27930.0,27929.0,0.006981]
[1680579193916,0.14166015,27930.0,27929.0,0.006981]
[1680579194133,0.16314115,27930.0,27929.0,0.006981]
[1680579194975,0.19014115,27930.0,27929.0,0.006981]
[1680579195408,0.30755405,27930.0,27929.0,0.006981]
[1680579195609,0.048481,27930.0,27929.0,0.006981]
[1680579195830,0.03416,27930.0,27929.0,0.006981]
[1680579196224,0.043969,27930.0,27929.0,0.006981]
[1680579196613,0.65313365,27930.0,27929.0,0.006981]
[1680579196820,0.78755234,27930.0,27929.0,0.006981]
[1680579197023,0.61763365,27930.0,27929.0,0.006981]
[1680579197223,0.64484365,27930.0,27929.0,0.006981]
[1680579198011,0.61784365,27930.0,27929.0,0.006981]
[1680579198756,0.64484365,27930.0,27929.0,0.006981]
[1680579198966,0.61784365,27930.0,27929.0,0.006981]
[1680579199165,0.74803234,27930.0,27929.0,0.006981]
[1680579199641,0.72103234,27930.0,27929.0,0.006981]
[1680579199842,0.74803234,27930.0,27929.0,0.006981]
[1680579200053,0.72103234,27930.0,27929.0,0.006981]
[1680579200248,0.66323234,27930.0,27929.0,0.006981]
[1680579200453,0.63623234,27930.0,27929.0,0.006981]
[1680579200662,0.66323234,27930.0,27929.0,0.006981]
[1680579201487,0.63623234,27930.0,27929.0,0.006981]
[1680579201907,0.66323234,27930.0,27929.0,0.006981]
[1680579202322,0.99926063,27930.0,27929.0,0.006981]
[1680579203815,0.97719598,27930.0,27929.0,0.006981]
[1680579204021,1.12729454,27930.0,27929.0,0.006981]
[1680579204654,0.95019598,27930.0,27929.0,0.006981]
[1680579204882,0.97719598,27930.0,27929.0,0.006981]
[1680579205092,0.95019598,27930.0,27929.0,0.006981]
[1680579205293,1.11680423,27930.0,27929.0,0.006981]
[1680579206587,1.08980423,27930.0,27929.0,0.006981]
[1680579207400,1.08959423,27930.0,27929.0,0.00297512]
[1680579207614,1.11659423,27930.0,27929.0,0.00297512]
[1680579208069,0.97698598,27930.0,27929.0,0.00297512]
[1680579208514,1.43908598,27930.0,27929.0,0.00297512]
[1680579208739,1.06228598,27930.0,27929.0,0.00297512]
[1680579208958,1.1990631,27930.0,27929.0,0.00297512]
[1680579209174,1.1720631,27930.0,27929.0,0.00297512]
[1680579209395,1.1990631,27930.0,27929.0,0.00297512]
[1680579209663,1.06228598,27930.0,27929.0,0.00297512]
[1680579210328,1.03528598,27930.0,27929.0,0.00297512]
[1680579210551,1.06228598,27930.0,27929.0,0.00297512]
[1680579210941,1.2165354,27930.0,27929.0,0.00297512]
[1680579211146,1.06288598,27930.0,27929.0,0.00297512]
[1680579211381,1.06288598,27930.0,27918.0,0.00125823]
[1680579211382,0.57627324,27922.0,27918.0,0.00125823]
[1680579211647,0.178962,27920.0,27917.0,0.00831128]
[1680579211853,0.0848,27918.0,27916.0,0.0208]
[1680579212057,0.25705081,27917.0,27916.0,0.0208]
[1680579212440,0.55705081,27917.0,27916.0,0.0208]
[1680579212642,0.415154,27917.0,27916.0,0.0208]
[1680579212842,0.415364,27917.0,27916.0,0.0208]
[1680579213222,0.80844383,27917.0,27916.0,0.0208]
[1680579213550,0.91682062,27917.0,27916.0,0.0208]
[1680579213686,0.94382062,27917.0,27916.0,0.0208]
[1680579213916,0.91682062,27917.0,27916.0,0.0208]
[1680579214142,0.94382062,27917.0,27916.0,0.0208]
[1680579214363,0.91682062,27917.0,27916.0,0.0208]
[1680579214795,0.94382062,27917.0,27916.0,0.0208]
[1680579215012,1.31841062,27917.0,27916.0,0.0208]
[1680579215235,1.32691062,27917.0,27916.0,0.0208]
[1680579215706,1.44180743,27917.0,27916.0,0.0208]
[1680579215928,1.29991062,27917.0,27916.0,0.0208]
[1680579216140,1.32691062,27917.0,27916.0,0.0208]
[1680579216356,1.35391062,27917.0,27916.0,0.0208]
[1680579216793,1.29991062,27917.0,27916.0,0.0208]
[1680579217017,1.32691062,27917.0,27916.0,0.0208]
[1680579217264,1.29991062,27917.0,27916.0,0.0208]
[1680579217490,1.32691062,27917.0,27916.0,0.0208]
[1680579217707,0.99243079,27917.0,27916.0,0.0208]
[1680579218365,1.38897168,27917.0,27916.0,0.0208]
[1680579218633,1.41597168,27917.0,27916.0,0.0208]
[1680579218890,1.38897168,27917.0,27916.0,0.0208]
[1680579219115,1.41597168,27917.0,27916.0,0.0208]
[1680579219329,1.38897168,27917.0,27916.0,0.0208]
[1680579219793,1.41618168,27917.0,27916.0,0.0208]
[1680579220008,1.38918168,27917.0,27916.0,0.0208]
[1680579220230,1.41618168,27917.0,27916.0,0.0208]
[1680579220663,1.01964079,27917.0,27916.0,0.0208]
[1680579220904,0.67627324,27916.0,27915.0,0.00181886]
[1680579221123,1.45610401,27916.0,27915.0,0.00181886]
[1680579221376,1.53491101,27916.0,27915.0,0.00181886]
[1680579222033,1.56191101,27916.0,27915.0,0.00181886]
[1680579223374,0.1,27915.0,27914.0,0.01356747]
[1680579223617,1.0631969,27915.0,27914.0,0.01356747]
[1680579223845,1.1133479,27915.0,27914.0,0.01356747]
[1680579224734,1.1403479,27915.0,27914.0,0.01356747]
[1680579225585,1.3123079,27915.0,27914.0,0.01356747]
[1680579225806,1.1403479,27915.0,27914.0,0.01356747]
[1680579226929,1.3123079,27915.0,27914.0,0.01356747]
[1680579227138,1.1403479,27915.0,27914.0,0.01356747]
[1680579227352,1.2259479,27915.0,27914.0,0.01356747]
[1680579227571,1.1989479,27915.0,27914.0,0.01356747]
[1680579227795,1.2259479,27915.0,27914.0,0.01356747]
[1680579229357,1.3979079,27915.0,27914.0,0.01356747]
[1680579230021,1.3979079,27915.0,27914.0,0.00473364]
[1680579230227,1.3709079,27915.0,27914.0,0.00473364]
[1680579230590,1.3979079,27915.0,27914.0,0.00473364]
[1680579231213,1.1989479,27915.0,27914.0,0.00473364]
[1680579231413,1.3979079,27915.0,27914.0,0.00473364]
[1680579231635,1.2259479,27915.0,27914.0,0.00473364]
[1680579232012,1.3979079,27915.0,27914.0,0.00473364]
[1680579232431,1.5770479,27915.0,27914.0,0.00473364]
[1680579232638,1.3780879,27915.0,27914.0,0.00473364]
[1680579232852,2.0001479,27915.0,27914.0,0.00473364]
[1680579233066,0.4768,27914.0,27913.0,0.01680364]
[1680579233290,0.92721689,27914.0,27913.0,0.01680364]
[1680579233500,1.09917689,27914.0,27913.0,0.01680364]
[1680579233704,1.39917689,27914.0,27913.0,0.01680364]
[1680579234539,1.42617689,27914.0,27913.0,0.01680364]
[1680579237803,1.42617689,27914.0,27913.0,0.01383946]
[1680579239425,1.42617689,27914.0,27913.0,9.46e-06]
[1680579239607,0.4768,27912.0,27911.0,0.01827849]
[1680579239797,1.229078,27912.0,27911.0,0.01827849]
[1680579240003,2.69075085,27912.0,27911.0,0.01827849]
[1680579241327,0.1,27911.0,27910.0,0.01407849]
[1680579241566,0.777371,27911.0,27910.0,0.01407849]
[1680579241788,0.691771,27911.0,27910.0,0.01407849]
[1680579241999,0.86763125,27911.0,27910.0,0.01407849]
[1680579242235,1.37465312,27911.0,27910.0,0.01407849]
[1680579242452,0.90426748,27911.0,27910.0,0.01407849]
[1680579242671,0.93126748,27911.0,27910.0,0.01407849]
[1680579242886,1.28982178,27911.0,27910.0,0.01407849]
[1680579243096,1.27132178,27911.0,27910.0,0.01407849]
[1680579243318,0.92152178,27911.0,27910.0,0.01407849]
[1680579243549,0.88602178,27911.0,27910.0,0.01407849]
[1680579244224,0.99772319,27911.0,27910.0,0.01407849]
[1680579244447,1.02472319,27911.0,27910.0,0.01407849]
[1680579245084,0.98945265,27911.0,27910.0,0.01407849]
[1680579245289,0.96245265,27911.0,27910.0,0.01407849]
[1680579245722,0.98945265,27911.0,27910.0,0.01407849]
[1680579246336,0.98966265,27911.0,27910.0,0.01407849]
[1680579246759,0.98945265,27911.0,27910.0,0.01407849]
[1680579247410,0.8135924,27911.0,27910.0,0.01407849]
[1680579247828,0.7865924,27911.0,27910.0,0.01407849]
[1680579248061,0.77695617,27911.0,27910.0,0.01407849]
[1680579250146,0.341971,27911.0,27905.0,0.20825254]
[1680579250365,0.029304,27909.0,27905.0,0.07996583]
[1680579250626,0.029305,27907.0,27905.0,0.07996583]
[1680579250844,0.008062,27906.0,27905.0,0.07996583]
[1680579251058,0.00716601,27906.0,27905.0,0.07996583]
[1680579251908,0.00716601,27906.0,27905.0,0.12828671]
[1680579252176,0.034166,27906.0,27905.0,0.55144391]
[1680579252449,0.08373555,27906.0,27905.0,0.55144391]
[1680579252991,0.09094955,27906.0,27905.0,0.55144391]
[1680579253294,0.40210716,27906.0,27905.0,0.55156391]
[1680579253491,0.40210716,27906.0,27905.0,0.55162391]
[1680579253831,0.40210716,27906.0,27905.0,0.6320816]
[1680579254074,0.40210716,27906.0,27905.0,0.80308176]
[1680579254337,0.48133742,27906.0,27905.0,0.37992456]
[1680579254635,0.48867642,27906.0,27905.0,0.6320816]
[1680579254867,0.48867642,27906.0,27905.0,0.2089244]
[1680579255414,0.48133742,27906.0,27905.0,0.2089244]
[1680579255696,0.034166,27906.0,27905.0,0.2089244]
[1680579256017,0.034166,27906.0,27905.0,0.4231572]
[1680579256519,0.034166,27906.0,27905.0,0.8518234]
[1680579257573,0.37602607,27906.0,27905.0,0.4232172]
[1680579257898,0.44980681,27906.0,27905.0,0.00018]
[1680579258168,0.90150939,27906.0,27905.0,0.76587803]
[1680579258444,0.90150939,27906.0,27905.0,0.5516866]
[1680579258445,0.90171939,27906.0,27905.0,0.5516866]
[1680579258753,0.90171939,27906.0,27905.0,0.1285294]
[1680579259507,0.90171939,27906.0,27905.0,0.29990194]
[1680579259757,0.90171939,27906.0,27905.0,0.59452974]
[1680579260689,0.80171939,27906.0,27905.0,0.59452974]
[1680579260931,0.80171939,27906.0,27905.0,0.17137254]
[1680579262243,0.80171939,27906.0,27905.0,0.72311074]
[1680579262449,0.80171939,27906.0,27905.0,0.59452974]
[1680579263212,0.80171939,27906.0,27905.0,0.17137254]
[1680579263955,0.80171939,27906.0,27905.0,0.72314507]
[1680579264191,0.80171939,27906.0,27905.0,0.29998787]
[1680579264680,0.76621939,27906.0,27905.0,0.59452974]
[1680579265411,0.79200939,27906.0,27905.0,0.59470974]